Cogmind - Beta 15 @@@ ROGUE MODE // 2025.05.29 @ 03:30:37 // AFD2019/Pay2Buy Player: celerysam Result: Destroyed by I1-EFL(R) with Subdweller Beam Cannon Performance ------------- Evolutions (0) 0 Regions Visited (2) 400 Robots Destroyed (12) 60 Value Destroyed (298) 298 Prototype IDs (2) 40 Alien Tech Used (0) 0 Bonus (0) 0 TOTAL SCORE: 798 Bonus ------- None Cogmind --------- Core Integrity 0/250 Matter 331/450 Energy 60/100 System Corruption 0% Temperature Cool (11) Movement Flying (37) Location -10/Subcaves Parts ------- > --- POWER (1) -------- (None) > --- PROPULSION (2) --- Improved Flight Unit Improved Flight Unit > --- UTILITY (2) ------ Compact Matter Pod > --- WEAPON (2) ------- Mining Claw > --- INVENTORY (10) --- Subdweller Optics Peak State ------------ > --- POWER ------------ Light Ion Engine > --- PROPULSION ------- Improved Flight Unit Improved Flight Unit > --- UTILITY ---------- Compact Matter Pod Reaction Control System > --- WEAPON ----------- Improved Assault Rifle > --- INVENTORY -------- EM Pulse Gun Mining Claw [Rating: 16] Favorites ----------- Power Light Ion Engine Engine Light Ion Engine Propulsion Improved Flight Unit Flight Unit Improved Flight Unit Utility Compact Matter Pod Device Reaction Control System Storage Compact Matter Pod Weapon Improved Assault Rifle Energy Gun EM Pulse Gun Ballistic Gun Improved Assault Rifle Special Weapon Flamer Slashing Weapon Mining Claw Build | -11 -10 -10 ------- Run | Yrd Mat Sub Slots Evolved . | . . . Power . | . . . Propulsion . | . . . Utility . | . . . Weapon . | . . . Parts Attached 2 | . . 2 Power . | . . . Engine . | . . . Core . | . . . Reactor . | . . . Propulsion . | . . . Treads . | . . . Leg . | . . . Wheel . | . . . Hover . | . . . Flight . | . . . Utility . | . . . Device . | . . . Storage . | . . . Processor . | . . . Hackware . | . . . Protection . | . . . Artifact . | . . . Weapon 2 | . . 2 Energy Gun 1 | . . 1 Energy Cannon . | . . . Ballistic Gun . | . . . Ballistic Cannon . | . . . Launcher . | . . . Special Weapon . | . . . Impact Weapon . | . . . Slashing Weapon 1 | . . 1 Piercing Weapon . | . . . Special Melee Weapon . | . . . Unidentified Prototypes . | . . . Parts Lost 5 | . 3 2 Power 1 | . 1 . Propulsion . | . . . Utility 1 | . . 1 Weapon 3 | . 2 1 Highest Loss Streak 2 | . 2 2 To Critical Strikes . | . . . Average Backups 1 | . 2 1 Power . | . . . Propulsion . | . . . Utility . | . . . Weapon 1 | . 2 1 Tool/Special . | . . . Unused Backups 1 | . . 1 Power . | . . . Propulsion . | . . . Utility 1 | . . 1 Weapon . | . . . Tool/Special . | . . . Average Slot Usage (%) 68 | . 74 57 Engine 3 | . 5 . Flight 28 | . 28 28 Device 8 | . 7 10 Storage 14 | . 14 14 Ballistic Gun 8 | . 13 . Special Weapon 3 | . 5 . Slashing Weapon 1 | . . 3 Peak Build Rating 16 | 14 16 12 Average Rating 13 | 3 14 11 On Entrance 8 | . 14 12 Naked Turns . | . . . Heaviest Build 8 | 6 8 5 Greatest Support 10 | 10 10 10 Greatest Overweight (x) . | . . . Average Overweight (x) . | . . . Largest Inventory Capacity 10 | 10 10 10 Average Capacity 10 | 10 10 10 Most Carried 3 | 2 2 3 Average Carried 1 | . 2 1 Final Capacity 10 | 10 10 10 Final Carried 2 | 2 2 1 Class Distribution -------------------- 100% | Mutant Dominant Class ---------------- Mutant | -10/Materials Mutant | -10/Subcaves Resources | -11 -10 -10 ----------- Run | Yrd Mat Sub Matter Collected 397 | . 337 60 Remotely . | . . . Salvage Created 397 | . 337 60 Parts . | . . . Haulers Intercepted 1 | . 1 . Recyclers Shooed . | . . . Parts Field Recycled . | . . . Retrieved Matter . | . . . Parts Self-Destructed . | . . . Prevented . | . . . Kills | -11 -10 -10 ------- Run | Yrd Mat Sub Combat Hostiles Destroyed 7 | . 6 1 Melee 1 | . . 1 Guns 6 | . 6 . Classes Destroyed 6 | . 5 1 Worker 2 | . 2 . Hauler 1 | . 1 . Operator 1 | . 1 . Watcher 1 | . 1 . Grunt 6 | . 6 . Sentry 1 | . . 1 Best Kill Streak 5 | . 5 1 Combat Bots Only 4 | . 4 1 Max Kills in Single Turn 1 | . 1 1 Gunslinging . | . . . Exploded . | . . . Melee 1 | . . 1 Uniques/NPCs Destroyed . | . . . Combat | -11 -10 -10 -------- Run | Yrd Mat Sub Hostile Shots Fired 60 | . 40 20 Missed 18 | . 10 8 Hits 42 | . 30 12 Projectile 42 | . 30 12 Critical Strikes 1 | . 1 . Damage Taken 628 | . 369 259 Core 259 | . 119 140 Absorbed by Shields . | . . . Core Remaining (%) 100 | 100 . . Volleys Fired 62 | . 57 5 Largest 2 | . 2 1 Hottest 123 | . 123 40 Shots Fired 68 | . 63 5 Gun 62 | . 57 5 Cannon . | . . . Launcher . | . . . Special 6 | . 6 . Kinetic 57 | . 57 . Thermal 6 | . 6 . Explosive . | . . . Electromagnetic 5 | . . 5 Robot Hit Streak 10 | . 10 8 Robot Miss Streak 5 | . 5 1 Penetration Max . | . . . Secondary Targets . | . . . Shots Hit Robots 53 | . 48 5 Core Hits 18 | . 16 2 Critical Kills . | . . . Critical Parts Destroyed . | . . . Critical Strikes 2 | . 2 . Burn 2 | . 2 . Melee Attacks 1 | . . 1 Impact . | . . . Slashing 1 | . . 1 Piercing . | . . . Sneak Attacks . | . . . Combat Hostiles . | . . . Follow-up Attacks . | . . . Damage Inflicted 749 | . 684 65 Guns 659 | . 619 40 Cannons . | . . . Explosions . | . . . Melee 25 | . . 25 Ramming . | . . . Kinetic 619 | . 619 . Thermal 65 | . 65 . Explosive . | . . . Electromagnetic 40 | . . 40 Impact . | . . . Slashing 25 | . . 25 Piercing . | . . . Highest Corruption . | . . . Average Corruption . | . . . Corruption Purged . | . . . Corruption Blocked . | . . . Overload Shots . | . . . Overflow Damage . | . . . Projectiles . | . . . Explosions . | . . . Melee . | . . . Knockbacks . | . . . Impact . | . . . Kinetic . | . . . Secondary . | . . . Self-Inflicted Damage . | . . . Shots . | . . . Rammed . | . . . Targets Rammed . | . . . Kicked . | . . . Crushed . | . . . Highest Temperature 61 | . 61 . Average Temperature 22 | . 22 . Received Heat Transfer 288 | . 228 60 Siege Activations . | . . . Martial Activations . | . . . Shielding Activations . | . . . Robots Disrupted . | . . . Combat Hostiles . | . . . Robots Corrupted . | . . . Combat Hostiles . | . . . Parts Fried . | . . . Impact Corruptions . | . . . Robots Melted 1 | . 1 . Combat Hostiles . | . . . Parts Melted . | . . . Heat Transferred 800 | . 800 . Parts Sabotaged . | . . . Parts Stolen . | . . . Parts Stripped . | . . . Power Chain Reactions . | . . . Alert | -11 -10 -10 ------- Run | Yrd Mat Sub Maximum Alert Level . | . . . Low Security (%) 100 | 100 100 . Level 1 . | . . . Level 2 . | . . . Level 3 . | . . . Level 4 . | . . . Level 5 . | . . . High Security . | . . . Max Security . | . . . Peak Influence 89 | . 89 . Initial . | . . . Average 42 | . 44 . Influence Increases 224 | . 204 20 Destroy 0b10 Robot/C 140 | . 120 20 Destroy 0b10 Robot/NC 25 | . 25 . Destroy Leader 34 | . 34 . Successful Hack 10 | . 10 . Lose Combat Pursuer 15 | . 15 . Influence Decreases 214 | . 160 54 Entered New Map 22 | . . 22 Time Decay 162 | . 130 32 Lost Part 30 | . 30 . Squads Dispatched 2 | . 2 . Investigation . | . . . Extermination . | . . . Reinforcement 2 | . 2 . Assault . | . . . Garrison . | . . . Intercept . | . . . Searches Triggered . | . . . Construction Impeded . | . . . Haulers Reinforced . | . . . Active Scanning Responses . | . . . Cargo Convoy Interrupts . | . . . Stealth | -11 -10 -10 --------- Run | Yrd Mat Sub Distress Signals . | . . . Communications Jammed . | . . . Distress Signals . | . . . Times Spotted 26 | . 17 9 Peak Tracking Total 5 | . 4 5 Tactical Retreats 2 | . 1 1 Traps | -11 -10 -10 ------- Run | Yrd Mat Sub Traps Triggered 1 | . . 1 Indirectly . | . . . Trap Hack Attempts . | . . . Triggered . | . . . Disarmed . | . . . Reprogrammed . | . . . Reused . | . . . Traps Extracted . | . . . Installed . | . . . Triggered . | . . . Machines | -11 -10 -10 ---------- Run | Yrd Mat Sub Machines Disabled . | . . . Max in Single Turn . | . . . Machines Repaired . | . . . Machines Dismantled . | . . . Machines Sabotaged . | . . . Overloaded Fab Kills . | . . . Hacking | -11 -10 -10 --------- Run | Yrd Mat Sub Machines Accessed 2 | . 2 . Terminals 2 | . 2 . Fabricators . | . . . Repair Stations . | . . . Recycling Units . | . . . Scanalyzers . | . . . Garrison Access . | . . . Total Hacks 4 | . 4 . Successful 3 | . 3 . Failed 1 | . 1 . Catastrophic . | . . . Database Lockouts . | . . . Manual 3 | . 3 . Terminals 4 | . 4 . Fabricators . | . . . Repair Stations . | . . . Recycling Units . | . . . Scanalyzers . | . . . Garrison Access . | . . . Terminal Hacks 1 | . 1 . Emergency Access Points 1 | . 1 . Fabricator Hacks . | . . . Repair Station Hacks . | . . . Recycling Unit Hacks . | . . . Scanalyzer . | . . . Garrison Access Hacks . | . . . Unauthorized Hacks 2 | . 2 . Terminals 2 | . 2 . Assimilate 1 | . 1 . Botnet 1 | . 1 . Fabricators . | . . . Repair Stations . | . . . Recycling Units . | . . . Scanalyzers . | . . . Garrison Access . | . . . Data Cores Recovered . | . . . Used . | . . . Hacking Detections 1 | . 1 . Full Trace Events . | . . . Feedback Events . | . . . Feedback Blocked . | . . . Robot Schematics Acquired . | . . . Robots Built . | . . . Authchips . | . . . Time . | . . . Total Robot Build Rating . | . . . Part Schematics Acquired . | . . . Parts Built . | . . . Authchips . | . . . Time . | . . . Total Part Build Rating . | . . . Parts Repaired . | . . . Time . | . . . Parts Recycled . | . . . Recycled Matter . | . . . Retrieved Matter . | . . . Retrieved Components . | . . . Parts Scanalyzed . | . . . Part Schematics Acquired . | . . . Parts Damaged . | . . . Bothacking | -11 -10 -10 ------------ Run | Yrd Mat Sub Used RIF Installer . | . . . Robots Hacked . | . . . Non-combat . | . . . Combat . | . . . Robot Hacks Applied . | . . . Relay Couplers Released . | . . . Fabnet Peak Effective % . | . . . Robots Rewired . | . . . Allies Hacked . | . . . Hacks Repelled . | . . . Allies | -11 -10 -10 -------- Run | Yrd Mat Sub Total Allies 1 | . 1 . Largest Group 1 | . 1 1 Highest-Rated Group 10 | . 10 10 Highest-Rated Ally 10 | . 10 10 Total Orders . | . . . Ally Attacks . | . . . Total Damage . | . . . Kills . | . . . Allies Corrupted . | . . . Allies Melted . | . . . Intel | -11 -10 -10 ------- Run | Yrd Mat Sub Active Infowar (turns) . | . . . Robot Analysis Total . | . . . Derelict Logs Recovered . | . . . Drone Launches . | . . . Drone Recoveries . | . . . Exploration | -11 -10 -10 ------------- Run | Yrd Mat Sub Turns Passed 459 | 8 282 169 Spaces Moved 784 | 18 367 399 Core 10 | 10 . . Treads . | . . . Legs . | . . . Wheels . | . . . Hover . | . . . Flight 774 | 8 367 399 Fastest Speed 37 | 37 37 37 Average Speed 37 | 44 37 37 Slowest Speed 50 | 50 37 37 Overloaded Moves . | . . . Propulsion Burnouts . | . . . Robots Hopped 3 | . 3 . Potential Cave-ins . | . . . Cave-ins Triggered . | . . . Exploration Rate (%) 34 | 4 71 28 Regions Visited 2 Branch Regions 1 Pre-discovered Areas 1 | . . 1 Known Exits Taken . | . . . Unknown Exits Taken 2 | 1 1 . Scrap Searched . | . . . Spaces Dug . | . . . Terrain Destroyed . | . . . Melee . | . . . Projectile . | . . . AOE . | . . . Terrain Rammed . | . . . Walls Destroyed . | . . . Machines Disabled . | . . . Actions | -11 -10 -10 --------- Run | Yrd Mat Sub Total 868 | 17 440 411 Wait 23 | . 20 3 Move 776 | 17 360 399 Hop 3 | . 3 . Pick Up 1 | . . 1 Fast Attach . | . . . Attach 2 | . . 2 Detach . | . . . Swap . | . . . Drop . | . . . Fire 62 | . 57 5 Melee 1 | . . 1 Ram . | . . . Kick . | . . . Crush . | . . . Escape Stasis . | . . . Rewire . | . . . Trap . | . . . Miscellaneous . | . . . Route ------- -11/Scrapyard -10/Materials (discovered 3 exits: [*Mat] / [*Min] / [*Sub]) -10/Subcaves History --------- Turn | Location | Event 3 | -11/Scrapyard | Discovered new exit (range 14) 9 | -11/Scrapyard | Entered Materials 82 | -10/Materials | Discovered new exit (range 5) 156 | -10/Materials | Discovered new exit (range 7) 236 | -10/Materials | Discovered new exit (range 7) 291 | -10/Materials | Entered Subcaves 291 | -10/Subcaves | Accompanied by 1 ally 292 | -10/Subcaves | Approached by a straggling Scientist 305 | -10/Subcaves | Build established: Mutant 313 | -10/Subcaves | Learned location of Zion (-6) 313 | -10/Subcaves | Met a Zionite searching for "candidates" 374 | -10/Subcaves | Shifting Twisted Machinery released Battle Cannon 398 | -10/Subcaves | Core integrity fell below 50% 423 | -10/Subcaves | Shifting Twisted Machinery released Sub. Optics 426 | -10/Subcaves | Shifting Twisted Machinery released Flamer 456 | -10/Subcaves | Core integrity fell below 20% 460 | -10/Subcaves | Destroyed by I1-EFL(R) with Subdweller Beam Cannon Last Messages --------------- might I suggest a trip to Zion?" World map updated: -6/Zion. B6-LT7(c): "I think it's somewhere south of here" Battle Cannon falls loose from the Twisted Machinery. 00396_ PC-7NL(u) tweaks Twisted Machinery. 00397_ Triggered Piercing Trap. 00397_ Spikes shoot up from the floor. 00397_ Critical hit (Impale). 00421_ Reaction Control System destroyed. Sub. Optics falls loose from the Twisted Machinery. [DISCOUNT: For the next 126 turns enjoy 50% off any Device!] 00425_ Acquired Sub. Optics. Flamer falls loose from the Twisted Machinery. 00438_ EM Pulse Gun destroyed. 00440_ Y-45 Defender destroyed. 00443_ Acquired 60 matter. Map ----- +----------------------------------------------------+ | ????????# # "#####"??????????????????? | | ????????### # " ""#""??????????????????? | | ??????????## """"""???????????????????? | | ???????????## """" " ?????????????????? | | ????????????# "]" # #???????????????????? | | ????????????#" ### " " ##???????????????????? | | ?????????????# ##?#####" ###?????????????????? | | ?????????????# #??????# "#?????????????????? | | ????????????## #?????## ""#?????????????????? | | ????????????# #?????# ""##?????????????????? | | ????????????## ###????# ""##??????????????????? | | ????????????# ###### "" #???????????????????? | | ????????????## " # # #??????????????????? | | ????????????## " ""# ##??????????????????? | | ???????????## " ""####???????????????????? | | ???????????# ## # ## #?????????????????????? | | ??#######?## ########?##?????????????????????? | | ??# ## ##???#?##????????????????????????? | | ??## #???? # #???????????????????????? | | ### #???? ????????????????????????? | | "" ###### "?????????????????????????? | | """## ## ## ###???????????????????????? | | ????# ## # #???????????????????????? | | ????## ^ < < ##??????????????????????? | | ?????## ###### ##?????????????????????? | | ??????####?????### @ #?????????????????????? | | ?????????????????#### #???###???????????????? | | ???????????????????## ##?# #???????????????? | | ???????????????????# ### ## #???????????????? | | ???????????????????##R##?# #???????????????? | | ????????????????????# #### #???????????????? | | ????????????????????# #???????????????? | | ???????????????????## #???????????????? | | ??????????????????## ## ##???????????????? | | ?????????????????## #####????????????????? | | ?????????????????# ##??????????????????? | | ?????????????????### ##?????????????????? | | ???????????????????# ##????????????????? | | ???????????????????# #????????????????? | | ???????????????????# #????????????????? | | ???????????????????# ##???????????????? | | ??????????????????# ##### ######??????????? | | ??????????????????## #????### #??????????? | | ???????????????????# ???###?## ##??????????? | | ???????????????????#???## ### ###???????????? | | ???????????????????????# #?????????????? | | ???????????????????????## #?????????????? | | ????????????????????????##### ##?????????????? | | ??????????????????????????#### ###??????????????? | | ??????????????????????????# ##???????????????? | +----------------------------------------------------+ Best States ------------- Heat Dissipation 25 Energy Generation 10 Energy Capacity 125 Matter Stores 331 Matter Capacity 450 Sight Range 16 Terrain Scan Density 10 Evasion (%) 70 Item Schematics ----------------- None Robot Schematics ------------------ None Fabricated ------------ Nothing Repaired ---------- Nothing Alien Tech Used ----------------- None Achievements -------------- None Challenges ------------ None Cogshop Purchases (9) ----------------------- Imp. Flight Unit (1049) Imp. Flight Unit (1049) Imp. Assault Rifle (699) Flamer (699) Mining Claw (Loot Box) Com. Matter Pod (Loot Box) EM Pulse Gun (Loot Box) Lgt. Ion Engine (559) Reaction Control System (Loot Box) Game ------ Seed HybridGravitonAirjet Manual? 0 Play Time 00:11:19 Cumulative 267.7 hours Start 2025.05.29 @ 03:21:34 End 2025.05.29 @ 03:30:37 Sessions 1 Manual Loads 0 Difficulty Rogue Special Mode AFD2019/Pay2Buy Game No. 412 Rogue 412 Adventurer 0 Explorer 0 Win Type - Total 1 Types 1/0/0/0/0/0/0/0/0/0 Lore% 64 Gallery% 63 Achievement% 43 Wizard Run 0 Options --------- Layout 1 ASCII 0 Keyboard 0 Movement Mouse Keybinds 0 Fullscreen 2 Font 24/Smallcaps Map View 50x35 Zoom Use 0% Tactical HUD 1 Map Filters NONE Filters NONE Steam 1 RUN: e3e3f149-f1b0-47f6-835b-67cf6c57afd5